fUST/lending_fUST_20250717
["ID","MTS","AMOUNT","RATE_DAILY","PERIOD"]
[372645786,1752731448780,-460.0,0.00018687,2]
[372645788,1752731448790,-460.0,0.00018687,2]
[372645790,1752731448799,-460.0,0.00018687,2]
[372645793,1752731448809,-1368.5,0.00018687,2]
[372645795,1752731448819,-151.0,0.00018687,2]
[372645797,1752731448828,-460.0,0.00018687,2]
[372645798,1752731448837,-460.0,0.00018687,2]
[372645800,1752731448849,-151.0,0.00018687,2]
[372645802,1752731448858,-3030.86,0.00018687,2]
[372645804,1752731448870,-460.0,0.00018687,2]
[372645807,1752731448881,-539.5,0.00018687,2]
[372645809,1752731448890,-460.0,0.00018687,2]
[372645811,1752731448900,-1993.76,0.00018687,2]
[372645812,1752731448910,-460.0,0.00018687,2]
[372645814,1752731448921,-415.2199377,0.00018687,2]
[372645816,1752731448930,-1043.97,0.00018687,2]
[372645818,1752731448940,-460.0,0.00018687,2]
[372645819,1752731448953,-460.0,0.00018687,2]
[372645821,1752731448964,-2130.55,0.00018687,2]
[372645822,1752731448973,-460.0,0.00018687,2]
[372645823,1752731448983,-668.56,0.00018687,2]
[372645824,1752731448993,-668.56,0.00018687,2]
[372645826,1752731449003,-729.07,0.00018687,2]
[372645827,1752731449013,-464.83603832,0.00018687,2]
[372645828,1752731449023,-556.59,0.00018687,2]
[372645829,1752731449032,-460.0,0.00018687,2]
[372645830,1752731449043,-460.0,0.00018687,2]
[372645831,1752731449054,-460.0,0.00018687,2]
[372645832,1752731449064,-1331.84,0.00018687,2]
[372645833,1752731449074,-460.0,0.00018688,2]
[372645834,1752731449084,-460.0,0.00018688,2]
[372645835,1752731449096,-460.0,0.00018688,2]
[372645836,1752731449107,-460.0,0.00018688,2]
[372645837,1752731449118,-460.0,0.00018688,2]
[372645838,1752731449129,-460.0,0.00018688,2]
[372645839,1752731449139,-460.0,0.00018688,2]
[372645840,1752731449150,-460.0,0.00018688,2]
[372645841,1752731449160,-460.0,0.00018688,2]
[372645842,1752731449169,-460.0,0.00018688,2]
[372645843,1752731449178,-460.0,0.00018688,2]
[372645844,1752731449188,-460.0,0.00018688,2]
[372645845,1752731449198,-460.0,0.00018688,2]
[372645846,1752731449207,-500.0,0.00018688,2]
[372645848,1752731449217,-460.0,0.00018688,2]
[372645849,1752731449226,-460.0,0.00018688,2]
[372645850,1752731449236,-386.14832795,0.00018688,2]
[372645851,1752731449252,-322.87988812,0.00018688,2]
[372645852,1752731449263,-563.41,0.00018688,2]
[372645853,1752731449273,-155.434133,0.00018688,2]
[372645854,1752731449283,-460.0,0.00018688,2]
[372645855,1752731449293,-460.0,0.00018688,2]
[372645856,1752731449304,-460.0,0.00018688,2]
[372645857,1752731449313,-460.0,0.00018688,2]
[372645858,1752731449323,-460.0,0.00018688,2]
[372645859,1752731449333,-460.0,0.00018688,2]
[372645860,1752731449342,-151.0,0.00018688,2]
[372645861,1752731449351,-539.40311699,0.00018688,2]
[372645862,1752731449361,-460.0,0.00018688,2]
[372645863,1752731449370,-460.0,0.00018688,2]
[372645864,1752731449379,-460.0,0.00018688,2]
[372645865,1752731449389,-460.0,0.00018688,2]
[372645866,1752731449398,-460.0,0.00018688,2]
[372645867,1752731449407,-460.0,0.00018688,2]
[372645868,1752731449416,-460.0,0.00018688,2]
[372645869,1752731449426,-485.94465367,0.00018688,2]
[372645870,1752731449435,-151.0,0.00018688,2]
[372645871,1752731449444,-460.0,0.00018688,2]
[372645872,1752731449455,-460.0,0.00018688,2]
[372645873,1752731449464,-151.0,0.00018688,2]
[372645874,1752731449474,-460.0,0.00018689,2]
[372645875,1752731449483,-460.0,0.00018689,2]
[372645876,1752731449492,-460.0,0.00018689,2]
[372645877,1752731449501,-475.84164453,0.00018689,2]
[372645878,1752731449512,-151.0,0.00018691,2]
[372645879,1752731449521,-228.621804,0.00018692,2]
[372645880,1752731449531,-228.621804,0.00018692,2]
[372645881,1752731449539,-151.0,0.00018695,2]
[372645882,1752731449549,-151.0,0.00018695,2]
[372645883,1752731449558,-179.083867,0.00018697,2]
[372645884,1752731449567,-179.083867,0.00018697,2]
[372645885,1752731449577,-429.2412091,0.000187,2]
[372645886,1752731449586,-429.2412091,0.000187,2]
[372645887,1752731449595,-429.2412091,0.000187,2]
[372645888,1752731449605,-1000.0,0.00018721,2]
[372645889,1752731449615,-433.59906478,0.00018721,2]
[372645890,1752731449624,-1000.0,0.00018721,2]
[372645891,1752731449634,-1000.0,0.00018721,2]
[372645892,1752731449643,-160.0,0.00018729,2]
[372645893,1752731449653,-525.67742785,0.00018729,2]
[372645894,1752731449662,-12607.95677342,0.00018729,2]
[372645895,1752731449672,-214.44804168,0.00018729,2]
[372645896,1752731449682,-476.16111942,0.00018729,2]
[372645897,1752731449691,-160.0,0.00018729,2]
[372645898,1752731449701,-215.59244943,0.00018729,2]
[372645899,1752731449710,-839.15451687,0.00018729,2]
[372645900,1752731449720,-230.85589339,0.00018729,2]
[372645901,1752731449732,-151.0,0.00018731,2]
[372645902,1752731449742,-151.0,0.00018731,2]
[372645903,1752731449756,-2000.0,0.00018732,2]
[372645904,1752731449765,-151.0,0.00018733,2]
[372645905,1752731449775,-151.664224,0.00018733,2]
[372645906,1752731449785,-151.0,0.00018733,2]
[372645907,1752731449794,-151.0,0.00018733,2]
[372645908,1752731449803,-668.56,0.00018733,2]
[372645909,1752731449812,-429.2412091,0.000188,2]
[372645910,1752731449822,-228.621804,0.00018841,2]
[372645911,1752731449831,-228.621804,0.00018841,2]
[372645912,1752731449841,-834.0,0.00018856,2]
[372645913,1752731449850,-668.56,0.0001886,2]
[372645914,1752731449860,-834.0,0.0001888,2]
[372645915,1752731449873,-390.3536994,0.000189,2]
[372645916,1752731449883,-154.8623264,0.000189,2]
[372645917,1752731449893,-306.0,0.000189,2]
[372645918,1752731449905,-356.4348347,0.000189,2]
[372645919,1752731450010,-153.0,0.000189,2]
[372645920,1752731450020,-153.0,0.000189,2]
[372645921,1752731450030,-429.2412091,0.000189,2]
[372645923,1752731450040,-153.0,0.000189,2]
[372645924,1752731450050,-1628.09645973,0.000189,2]
[372645925,1752731450060,-10756.27565588,0.000189,2]
[372645926,1752731450070,-460.0,0.00018958,2]
[372645927,1752731450080,-460.0,0.00018958,2]
[372645928,1752731450089,-579.43765627,0.00018958,2]
[372645929,1752731450099,-460.0,0.00018958,2]
[372645930,1752731450108,-460.0,0.00018958,2]
[372645931,1752731450118,-460.0,0.00018958,2]
[372645932,1752731450127,-2000.19,0.00018958,2]
[372645933,1752731450137,-460.0,0.00018958,2]
[372645934,1752731450146,-460.0,0.00018958,2]
[372645935,1752731450155,-460.0,0.00018958,2]
[372645936,1752731450164,-460.0,0.00018958,2]
[372645937,1752731450174,-460.0,0.00018958,2]
[372645938,1752731450187,-460.0,0.00018959,2]
[372645939,1752731450196,-460.0,0.00018959,2]
[372645940,1752731450205,-3684.76,0.00018959,2]
[372645941,1752731450214,-460.0,0.00018959,2]
[372645942,1752731450223,-2365.53,0.00018959,2]
[372645943,1752731450233,-460.0,0.00018959,2]
[372645944,1752731450242,-662.33,0.00018959,2]
[372645945,1752731450251,-460.0,0.00018959,2]
[372645946,1752731450263,-1615.82,0.00018959,2]
[372645947,1752731450272,-460.0,0.00018959,2]
[372645948,1752731450281,-2019.94,0.00018959,2]
[372645949,1752731450290,-460.0,0.00018959,2]
[372645950,1752731450299,-556.17591022,0.00018959,2]
[372645951,1752731450308,-460.0,0.00018959,2]
[372645952,1752731450318,-460.0,0.00018959,2]
[372645953,1752731450327,-1692.93,0.00018959,2]
[372645955,1752731450336,-460.0,0.00018959,2]
[372645956,1752731450345,-1217.76,0.00018959,2]
[372645958,1752731450355,-460.0,0.00018959,2]
[372645960,1752731450364,-519.57,0.00018959,2]
[372645961,1752731450373,-460.0,0.00018959,2]
[372645962,1752731450383,-460.0,0.00018959,2]
[372645963,1752731450392,-460.0,0.0001896,2]
[372645964,1752731450402,-460.0,0.0001896,2]
[372645965,1752731450411,-460.0,0.0001896,2]
[372645966,1752731450421,-460.0,0.0001896,2]
[372645967,1752731450430,-460.0,0.0001896,2]
[372645968,1752731450439,-460.0,0.0001896,2]
[372645969,1752731450448,-460.0,0.0001896,2]
[372645970,1752731450458,-549.0491208,0.0001896,2]
[372645971,1752731450467,-460.0,0.0001896,2]
[372645972,1752731450476,-460.0,0.0001896,2]
[372645973,1752731450486,-562.91,0.0001896,2]
[372645974,1752731450495,-460.0,0.0001896,2]
[372645975,1752731450506,-557.04,0.0001896,2]
[372645976,1752731450515,-460.0,0.0001896,2]
[372645977,1752731450524,-460.0,0.0001896,2]
[372645978,1752731450533,-460.0,0.0001896,2]
[372645979,1752731450542,-461.16728943,0.0001896,2]
[372645980,1752731450552,-516.25,0.0001896,2]
[372645981,1752731450561,-460.0,0.0001896,2]
[372645982,1752731450570,-517.44,0.0001896,2]
[372645983,1752731450580,-882.21,0.0001896,2]
[372645984,1752731450589,-460.0,0.0001896,2]
[372645985,1752731450598,-585.61,0.0001896,2]
[372645986,1752731450607,-151.0,0.0001896,2]
[372645987,1752731450616,-510.2,0.0001896,2]
[372645988,1752731450626,-560.3,0.0001896,2]
[372645989,1752731450635,-668.56,0.0001896,2]
[372645990,1752731450644,-460.0,0.0001896,2]
[372645991,1752731450654,-460.0,0.0001896,2]
[372645992,1752731450663,-460.0,0.0001896,2]
[372645993,1752731450673,-460.0,0.0001896,2]
[372645994,1752731450682,-3291.4,0.0001896,2]
[372645995,1752731450692,-263.41507884,0.0001896,2]
[372645996,1752731450702,-229.20875757,0.0001896,2]
[372645997,1752731450711,-462.87,0.0001896,2]
[372645998,1752731450721,-460.0,0.0001896,2]
[372645999,1752731450731,-460.0,0.00018961,2]
[372646000,1752731450740,-425.39290116,0.00018961,2]
[372646001,1752731450749,-460.0,0.00018961,2]
[372646002,1752731450759,-460.0,0.00018961,2]
[372646003,1752731450768,-460.0,0.00018961,2]
[372646004,1752731450778,-460.0,0.00018961,2]
[372646005,1752731450788,-460.0,0.00018961,2]
[372646006,1752731450797,-460.0,0.00018961,2]
[372646007,1752731450807,-460.0,0.00018961,2]
[372646008,1752731450817,-460.0,0.00018961,2]
[372646009,1752731450826,-516.54,0.00018961,2]
[372646010,1752731450836,-151.0,0.00018961,2]
[372646011,1752731450845,-460.0,0.00018961,2]
[372646012,1752731450855,-484.72,0.00018961,2]
[372646013,1752731450864,-460.0,0.00018961,2]
[372646014,1752731450877,-460.0,0.00018961,2]
[372646015,1752731450887,-460.0,0.00018961,2]
[372646016,1752731450896,-460.0,0.00018961,2]
[372646017,1752731450906,-460.0,0.00018961,2]
[372646018,1752731450916,-460.0,0.00018961,2]
[372646019,1752731450925,-1368.5,0.00018961,2]
[372646020,1752731450934,-3030.86,0.00018961,2]
[372646021,1752731450944,-460.0,0.00018961,2]
[372646022,1752731450953,-539.5,0.00018961,2]
[372646023,1752731450962,-1993.76,0.00018961,2]
[372646024,1752731450971,-1043.97,0.00018961,2]
[372646025,1752731450980,-461.78145526,0.00018961,2]
[372646026,1752731450989,-2130.55,0.00018961,2]
[372646027,1752731450998,-460.0,0.00018961,2]
[372646028,1752731451008,-668.56,0.00018961,2]
[372646029,1752731451017,-729.07,0.00018961,2]
[372646030,1752731451026,-668.56,0.00018961,2]
[372646031,1752731451035,-556.59,0.00018961,2]
[372646032,1752731451044,-460.0,0.00018961,2]
[372646033,1752731451052,-460.0,0.00018961,2]
[372646034,1752731451062,-1331.84,0.00018961,2]
[372646035,1752731451071,-460.0,0.00018962,2]
[372646036,1752731451080,-151.272782,0.00018962,2]
[372646037,1752731451089,-281.42296728,0.00018962,2]
[372646038,1752731451098,-151.452743,0.00018962,2]
[372646039,1752731451107,-607.75478439,0.00018962,2]
[372646040,1752731451115,-460.0,0.00018962,2]
[372646041,1752731451124,-151.0,0.00018962,2]
[372646042,1752731451133,-151.0,0.00018962,2]
[372646043,1752731451142,-563.41,0.00018962,2]
[372646044,1752731451151,-460.0,0.00018962,2]
[372646045,1752731451161,-460.0,0.00018962,2]
[372646046,1752731451170,-460.0,0.00018962,2]
[372646047,1752731451179,-460.0,0.00018962,2]
[372646048,1752731451188,-151.0,0.00018962,2]
[372646049,1752731451197,-460.0,0.00018962,2]
[372646050,1752731451206,-460.0,0.00018962,2]
[372646051,1752731451215,-460.0,0.00018962,2]
[372646052,1752731451224,-475.43,0.00018962,2]
[372646053,1752731451233,-151.0,0.00018962,2]
[372646054,1752731451242,-151.0,0.00018962,2]
[372646055,1752731451251,-460.0,0.00018962,2]
[372646056,1752731451262,-460.0,0.00018963,2]
[372646057,1752731451271,-460.0,0.00018963,2]
[372646058,1752731451280,-151.0,0.00018966,2]
[372646059,1752731451289,-151.0,0.00018966,2]
[372646060,1752731451298,-179.083867,0.00018968,2]
[372646061,1752731451307,-179.083867,0.00018968,2]
[372646062,1752731451316,-179.083867,0.00018988,2]
[372646063,1752731451325,-179.083867,0.00018988,2]
[372646064,1752731451335,-151.0,0.00018988,2]
[372646065,1752731451344,-151.0,0.00018988,2]
[372646066,1752731451354,-228.621804,0.00018988,2]
[372646067,1752731451363,-228.621804,0.00018988,2]
[372646068,1752731451373,-207.4,0.00018988,2]
[372646069,1752731451382,-10017.59641619,0.00019006,2]
[372646070,1752731451391,-709.69808462,0.00019007,2]
[372646071,1752731451401,-1001.13455083,0.00019021,2]
[372646072,1752731451410,-1000.0,0.00019021,2]
[372646073,1752731451419,-834.0,0.00019042,2]
[372646074,1752731451429,-152.4612,0.00019101,2]
[372646075,1752731451438,-1000.0,0.00019122,2]
[372646076,1752731451447,-668.56,0.00019175,2]
[372646077,1752731451527,-668.56,0.00019175,2]
[372646078,1752731451536,-668.56,0.00019175,2]
[372646079,1752731451545,-668.56,0.00019175,2]
[372646080,1752731451555,-668.60919491,0.00019175,2]
[372646081,1752731451565,-10756.27565585,0.00019176,2]
[372646082,1752731451574,-151.0,0.00019176,2]
[372646083,1752731451583,-151.0,0.00019176,2]
[372646084,1752731451592,-179.083867,0.00019178,2]
[372646085,1752731451601,-179.083867,0.00019178,2]
[372646086,1752731451610,-151.0,0.00019178,2]
[372646087,1752731451619,-228.621804,0.00019178,2]
[372646088,1752731451629,-228.621804,0.00019178,2]
[372646089,1752731451638,-151.0,0.00019178,2]
[372646090,1752731451647,-151.0,0.00019178,2]
[372646091,1752731451657,-151.0,0.00019178,2]
[372646092,1752731451666,-151.0,0.00019178,2]
[372646093,1752731451675,-157.88513,0.00019178,2]
[372646094,1752731451684,-151.0,0.00019178,2]
[372646095,1752731451693,-500.0,0.00019178,2]
[372646096,1752731451702,-500.0,0.00019178,2]
[372646097,1752731451712,-500.0,0.00019178,2]
[372646098,1752731451721,-500.0,0.00019178,2]
[372646099,1752731451730,-151.0,0.00019178,2]
[372646100,1752731451739,-151.0,0.00019178,2]
[372646101,1752731451748,-500.0,0.00019178,2]
[372646102,1752731451758,-600.55365039,0.00019178,2]
[372646103,1752731451768,-500.0,0.00019178,2]
[372646104,1752731451777,-500.0,0.00019178,2]
[372646105,1752731451786,-500.0,0.00019178,2]
[372646106,1752731451795,-500.0,0.00019178,2]
[372646107,1752731451805,-500.0,0.00019178,2]
[372646108,1752731451814,-1097.354724,0.00019178,2]
[372646109,1752731451823,-666.0,0.00019178,2]
[372646110,1752731451833,-53979.3960775,0.00019178,2]
[372646111,1752731451843,-5000.0,0.00019178,2]
[372646112,1752731451852,-5000.0,0.00019178,2]
[372646113,1752731451861,-5000.0,0.00019178,2]
[372646114,1752731451876,-4100.57100552,0.00019178,2]
[372646115,1752731451885,-460.0,0.00019232,2]
[372646116,1752731451894,-460.0,0.00019232,2]
[372646117,1752731451903,-2000.19,0.00019232,2]
[372646118,1752731451912,-460.0,0.00019232,2]
[372646119,1752731451922,-460.0,0.00019232,2]
[372646120,1752731451931,-460.0,0.00019233,2]
[372646121,1752731451940,-500.0,0.00019233,2]
[372646122,1752731451950,-500.0,0.00019233,2]
[372646123,1752731451960,-3684.76,0.00019233,2]
[372646124,1752731451969,-460.0,0.00019233,2]
[372646125,1752731451978,-2365.53,0.00019233,2]
[372646126,1752731451987,-662.33,0.00019233,2]
[372646127,1752731451996,-460.0,0.00019233,2]
[372646128,1752731452005,-460.0,0.00019233,2]
[372646129,1752731452014,-1615.82,0.00019233,2]
[372646130,1752731452023,-2019.94,0.00019233,2]
[372646131,1752731452033,-298.22,0.00019233,2]
[372646132,1752731452041,-460.0,0.00019233,2]
[372646133,1752731452050,-460.0,0.00019233,2]
[372646134,1752731452059,-1692.93,0.00019233,2]
[372646135,1752731452068,-460.0,0.00019233,2]
[372646136,1752731452077,-1217.76,0.00019233,2]
[372646137,1752731452086,-460.0,0.00019233,2]
[372646138,1752731452095,-519.57,0.00019233,2]
[372646139,1752731452104,-460.0,0.00019233,2]
[372646140,1752731452113,-460.0,0.00019234,2]
[372646141,1752731452122,-460.0,0.00019234,2]
[372646142,1752731452131,-460.0,0.00019234,2]
[372646143,1752731452140,-460.0,0.00019234,2]
[372646144,1752731452149,-460.0,0.00019234,2]
[372646145,1752731452158,-460.0,0.00019234,2]
[372646146,1752731452167,-460.0,0.00019234,2]
[372646147,1752731452176,-460.0,0.00019234,2]
[372646148,1752731452184,-562.91,0.00019234,2]
[372646149,1752731452194,-460.0,0.00019234,2]
[372646150,1752731452203,-557.04,0.00019234,2]
[372646151,1752731452212,-460.0,0.00019234,2]
[372646152,1752731452221,-460.0,0.00019234,2]
[372646153,1752731452230,-460.0,0.00019234,2]
[372646154,1752731452239,-516.25,0.00019234,2]
[372646155,1752731452248,-461.69,0.00019234,2]
[372646156,1752731452257,-517.44,0.00019234,2]
[372646157,1752731452266,-882.21,0.00019234,2]
[372646158,1752731452275,-460.0,0.00019234,2]
[372646159,1752731452284,-585.61,0.00019234,2]
[372646160,1752731452293,-510.2,0.00019234,2]
[372646161,1752731452302,-560.3,0.00019234,2]
[372646162,1752731452311,-460.0,0.00019234,2]
[372646163,1752731452320,-460.0,0.00019234,2]
[372646164,1752731452329,-3291.4,0.00019234,2]
[372646165,1752731452338,-460.0,0.00019234,2]
[372646166,1752731452347,-460.0,0.00019235,2]
[372646167,1752731452356,-460.0,0.00019235,2]
[372646168,1752731452365,-460.0,0.00019235,2]
[372646169,1752731452374,-460.0,0.00019235,2]
[372646170,1752731452383,-460.0,0.00019235,2]
[372646171,1752731452393,-460.0,0.00019235,2]
[372646172,1752731452403,-460.0,0.00019235,2]
[372646174,1752731452412,-516.54,0.00019235,2]
[372646175,1752731452421,-460.0,0.00019235,2]
[372646176,1752731452431,-484.72,0.00019235,2]
[372646177,1752731452440,-460.0,0.00019235,2]
[372646178,1752731452450,-193.14917578,0.00019235,2]
[372646179,1752731452460,-460.0,0.00019235,2]
[372646180,1752731452469,-1368.5,0.00019235,2]
[372646181,1752731452479,-3030.86,0.00019235,2]
[372646182,1752731452488,-494.3,0.00019235,2]
[372646183,1752731452498,-539.5,0.00019235,2]
[372646184,1752731452509,-1993.76,0.00019235,2]
[372646185,1752731452519,-1043.97,0.00019235,2]
[372646186,1752731452528,-2130.55,0.00019235,2]
[372646187,1752731452537,-460.0,0.00019235,2]
[372646188,1752731452547,-729.07,0.00019235,2]
[372646189,1752731452557,-556.59,0.00019235,2]
[372646190,1752731452566,-460.0,0.00019235,2]
[372646191,1752731452576,-460.0,0.00019235,2]
[372646192,1752731452586,-1331.84,0.00019235,2]
[372646193,1752731452595,-460.0,0.00019236,2]
[372646194,1752731452605,-563.41,0.00019236,2]
[372646195,1752731452614,-460.0,0.00019236,2]
[372646196,1752731452624,-460.0,0.00019236,2]
[372646197,1752731452634,-460.0,0.00019237,2]
[372646198,1752731452643,-1500.0,0.00019268,2]
[372646199,1752731452652,-1500.0,0.00019268,2]
[372646200,1752731452662,-1500.0,0.00019268,2]
[372646201,1752731452671,-647.0,0.00019295,2]
[372646202,1752731452680,-2155.0,0.00019295,2]
[372646203,1752731452689,-407.0,0.00019295,2]
[372646204,1752731452699,-414.376,0.00019295,2]
[372646205,1752731452708,-968.0,0.00019295,2]
[372646206,1752731452718,-151.0,0.000193,2]
[372646207,1752731452727,-152.40841546,0.00019305,2]
[372646208,1752731452738,-168.0,0.00019309,2]
[372646209,1752731452747,-834.0,0.00019309,2]
[372646210,1752731452758,-179.083867,0.00019329,2]
[372646211,1752731452767,-179.083867,0.00019329,2]
[372646212,1752731452776,-179.083867,0.00019329,2]
[372646213,1752731452786,-179.083867,0.00019329,2]
[372646214,1752731452796,-151.0,0.00019329,2]
[372646215,1752731452805,-151.0,0.00019329,2]
[372646216,1752731452815,-228.621804,0.00019329,2]
[372646217,1752731452824,-228.621804,0.00019329,2]
[372646218,1752731452833,-407.82821,0.00019329,2]
[372646219,1752731452843,-407.82821,0.00019329,2]
[372646220,1752731452853,-151.0,0.00019329,2]
[372646221,1752731452953,-151.0,0.00019329,2]
[372646222,1752731452962,-151.0,0.00019329,2]
[372646223,1752731452972,-269.448775,0.00019329,2]
[372646224,1752731452982,-269.448775,0.00019329,2]
[372646225,1752731452992,-244.464713,0.00019329,2]
[372646226,1752731453002,-244.464713,0.00019329,2]
[372646227,1752731453011,-151.0,0.00019329,2]
[372646228,1752731453022,-151.0,0.00019329,2]
[372646229,1752731453032,-151.0,0.00019329,2]
[372646230,1752731453041,-151.0,0.00019329,2]
[372646231,1752731453050,-151.0,0.00019329,2]
[372646232,1752731453059,-151.0,0.00019329,2]
[372646233,1752731453069,-151.0,0.00019329,2]
[372646234,1752731453079,-2760.40679502,0.00019329,2]
[372646235,1752731453218,-660.10127528,0.00019329,2]
[372646236,1752731453230,-2073.21910971,0.00019329,2]
[372646237,1752731453241,-401.42757738,0.00019329,2]
[372646238,1752731453253,-291.300155,0.00019329,2]
[372646239,1752731453265,-364.52002253,0.00019329,2]
[372646240,1752731453277,-2238.04190898,0.00019329,2]
[372646241,1752731453289,-1293.46874142,0.00019329,2]
[372646242,1752731453300,-444.99950906,0.00019329,2]
[372646243,1752731453312,-1033.58533371,0.00019329,2]
[372646244,1752731453323,-1000.9999859,0.00019329,2]
[372646245,1752731453334,-1359.47564834,0.00019329,2]
[372646246,1752731453455,-460.0,0.00018136,2]
[372646247,1752731453465,-460.0,0.00018139,2]
[372646248,1752731453474,-500.0,0.0001814,2]
[372646249,1752731453483,-500.0,0.00018143,2]
[372646250,1752731453493,-953.97,0.00018412,2]
[372646251,1752731453502,-500.0,0.00018412,2]
[372646252,1752731453513,-246.76,0.00018413,2]
[372646253,1752731453523,-460.0,0.00018413,2]
[372646254,1752731453532,-460.0,0.00018684,2]
[372646255,1752731453542,-953.97,0.00018686,2]
[372646256,1752731453552,-953.97,0.0001896,2]
[372646257,1752731453561,-953.97,0.00019234,2]
[372646258,1752731453571,-77838.03733258,0.00019329,2]
[372646259,1752731454352,-83.08541573,0.00019329,2]
[372646260,1752731454364,-8157.33118936,0.00019329,2]
[372646261,1752731454374,-153.0,0.00019342,2]
[372646262,1752731454383,-153.0,0.00019342,2]
[372646263,1752731454394,-153.0,0.00019342,2]
[372646264,1752731454403,-153.0,0.00019342,2]
[372646265,1752731454413,-153.0,0.00019342,2]
[372646266,1752731454424,-153.0,0.00019342,2]
[372646267,1752731454433,-153.0,0.00019342,2]
[372646268,1752731454443,-153.0,0.00019342,2]
[372646269,1752731454452,-153.0,0.00019342,2]
[372646270,1752731454461,-153.0,0.00019342,2]
[372646271,1752731454471,-153.0,0.00019342,2]
[372646272,1752731454481,-306.0,0.00019342,2]
[372646273,1752731454490,-153.0,0.00019342,2]
[372646274,1752731454499,-153.0,0.00019342,2]
[372646275,1752731454509,-153.0,0.00019342,2]
[372646276,1752731454519,-153.0,0.00019342,2]
[372646277,1752731454530,-153.0,0.00019342,2]
[372646278,1752731454539,-153.0,0.00019342,2]
[372646279,1752731454548,-153.0,0.00019342,2]
[372646280,1752731454558,-153.0,0.00019342,2]
[372646281,1752731454567,-5000.0,0.00019347,2]
[372646282,1752731454576,-709.69808462,0.00019353,2]
[372646283,1752731454585,-446.0,0.00019376,2]
[372646284,1752731454595,-160.0,0.00019394,2]
[372646285,1752731454604,-2930.32440344,0.00019452,2]
[372646286,1752731454616,-7825.95125241,0.00019452,2]
[372646287,1752731454626,-839.258891,0.00019463,2]
[372646288,1752731454637,-834.0,0.00019465,2]
[372646289,1752731454647,-168.0,0.00019495,2]
[372646290,1752731454656,-385.8,0.00019499,3]
[372646291,1752731454666,-525.84,0.00019499,3]
[372646292,1752731454675,-536.72,0.00019499,3]
[372646293,1752731454686,-363.98,0.000195,3]
[372646294,1752731454695,-771.6,0.000195,3]
[372646295,1752731454705,-151.0,0.000195,2]
[372646296,1752731454714,-460.0,0.00019506,2]
[372646297,1752731454724,-460.0,0.00019506,2]
[372646298,1752731454735,-2000.19,0.00019506,2]
[372646299,1752731454744,-460.0,0.00019506,2]
[372646300,1752731454753,-446.0,0.00019507,2]
[372646301,1752731454763,-460.0,0.00019507,2]
[372646302,1752731454773,-500.0,0.00019507,2]
[372646303,1752731454784,-500.0,0.00019507,2]
[372646304,1752731454793,-3684.76,0.00019507,2]
[372646305,1752731454803,-334.57622904,0.00019507,2]
[372646306,1752731454815,-177.80377096,0.00019507,2]
[372646307,1752731454824,-2365.53,0.00019507,2]
[372646308,1752731454834,-662.33,0.00019507,2]
[372646309,1752731454844,-255.65,0.00019507,2]